fUSD/lending_fUSD_20240519
["ID","MTS","AMOUNT","RATE_DAILY","PERIOD"]
[327462157,1716082251223,-500.0,0.00028219,2]
[327462158,1716082251232,-856.62,0.00028219,2]
[327462159,1716082251241,-779.63,0.00028219,2]
[327462160,1716082251250,-500.0,0.00028219,2]
[327462161,1716082251259,-500.0,0.00028219,2]
[327462162,1716082251268,-500.0,0.00028219,2]
[327462163,1716082251277,-500.0,0.00028219,2]
[327462164,1716082251286,-500.0,0.00028219,2]
[327462165,1716082251295,-500.0,0.00028219,2]
[327462166,1716082251304,-500.0,0.00028219,2]
[327462167,1716082251313,-639.93,0.00028219,2]
[327462168,1716082251322,-500.0,0.00028219,2]
[327462169,1716082251330,-500.0,0.00028219,2]
[327462170,1716082251340,-500.0,0.00028219,2]
[327462171,1716082251349,-1255.93,0.00028219,2]
[327462172,1716082251358,-713.46,0.00028219,2]
[327462173,1716082251367,-500.0,0.00028219,2]
[327462174,1716082251375,-500.0,0.00028219,2]
[327462175,1716082251384,-573.24,0.00028219,2]
[327462176,1716082251393,-4072.27,0.00028219,2]
[327462177,1716082251402,-3429.99,0.00028219,2]
[327462178,1716082251411,-500.0,0.00028219,2]
[327462179,1716082251421,-500.0,0.00028219,2]
[327462180,1716082251430,-14641.45,0.00028219,2]
[327462181,1716082251438,-500.0,0.00028219,2]
[327462182,1716082251448,-989.32,0.00028219,2]
[327462183,1716082251457,-500.0,0.00028219,2]
[327462184,1716082251466,-500.0,0.00028219,2]
[327462185,1716082251476,-608.54,0.00028219,2]
[327462186,1716082251485,-500.0,0.00028219,2]
[327462187,1716082251494,-500.0,0.00028219,2]
[327462188,1716082251503,-1603.85,0.00028219,2]
[327462189,1716082251512,-500.0,0.00028219,2]
[327462190,1716082251522,-500.0,0.00028219,2]
[327462191,1716082251531,-500.0,0.00028219,2]
[327462192,1716082251540,-500.0,0.00028219,2]
[327462193,1716082251549,-500.0,0.00028219,2]
[327462194,1716082251558,-500.0,0.00028219,2]
[327462195,1716082251568,-622.79,0.00028219,2]
[327462196,1716082251577,-2711.99,0.00028219,2]
[327462197,1716082251586,-3199.92,0.00028219,2]
[327462198,1716082251596,-500.0,0.00028219,2]
[327462199,1716082251605,-579.86,0.00028219,2]
[327462200,1716082251614,-500.0,0.00028219,2]
[327462201,1716082251623,-518.99,0.00028219,2]
[327462202,1716082251632,-500.0,0.00028219,2]
[327462203,1716082251641,-500.0,0.00028219,2]
[327462204,1716082251650,-2911.46,0.00028219,2]
[327462205,1716082251660,-500.0,0.00028219,2]
[327462206,1716082251669,-500.0,0.00028219,2]
[327462207,1716082251678,-500.0,0.00028219,2]
[327462208,1716082251687,-595.93,0.00028219,2]
[327462209,1716082251696,-1062.35,0.00028219,2]
[327462210,1716082251705,-500.0,0.00028219,2]
[327462211,1716082251715,-500.0,0.00028219,2]
[327462212,1716082251725,-500.0,0.00028219,2]
[327462213,1716082251734,-791.88,0.00028219,2]
[327462214,1716082251744,-500.0,0.00028219,2]
[327462215,1716082251753,-1254.74,0.00028219,2]
[327462216,1716082251762,-500.0,0.00028219,2]
[327462217,1716082251770,-500.0,0.00028219,2]
[327462218,1716082251781,-890.48,0.00028219,2]
[327462219,1716082251790,-1317.08,0.00028219,2]
[327462220,1716082251799,-500.0,0.00028219,2]
[327462221,1716082251809,-500.0,0.00028219,2]
[327462222,1716082251818,-1486.92,0.00028219,2]
[327462223,1716082251827,-500.0,0.00028219,2]
[327462224,1716082251836,-1215.81,0.00028219,2]
[327462225,1716082251845,-500.0,0.00028219,2]
[327462226,1716082251855,-500.0,0.00028219,2]
[327462227,1716082251864,-500.0,0.00028219,2]
[327462228,1716082251873,-1461.12,0.00028219,2]
[327462229,1716082251882,-500.0,0.00028219,2]
[327462230,1716082251891,-500.0,0.00028219,2]
[327462231,1716082251900,-500.0,0.00028219,2]
[327462232,1716082251909,-712.48,0.00028219,2]
[327462233,1716082251918,-643.71,0.00028219,2]
[327462234,1716082251927,-945.44,0.00028219,2]
[327462235,1716082251936,-1781.22,0.00028219,2]
[327462236,1716082251950,-500.0,0.00028219,2]
[327462237,1716082251959,-500.0,0.00028219,2]
[327462238,1716082251968,-500.0,0.00028219,2]
[327462239,1716082251977,-500.0,0.00028219,2]
[327462240,1716082251987,-986.97,0.00028219,2]
[327462241,1716082251997,-962.37,0.00028219,2]
[327462242,1716082252007,-722.54,0.00028219,2]
[327462243,1716082252017,-500.0,0.00028219,2]
[327462244,1716082252028,-1446.91,0.00028219,2]
[327462245,1716082252038,-405.07502614,0.00028219,2]
[327462246,1716082252047,-500.0,0.00028219,2]
[327462247,1716082252057,-500.0,0.00028219,2]
[327462248,1716082252066,-1189.8,0.00028219,2]
[327462249,1716082252076,-1219.05,0.00028219,2]
[327462250,1716082252085,-720.44,0.00028219,2]
[327462251,1716082252094,-563.6,0.00028219,2]
[327462252,1716082252103,-500.0,0.00028219,2]
[327462253,1716082252112,-500.0,0.00028219,2]
[327462254,1716082252120,-555.9,0.00028219,2]
[327462255,1716082252128,-500.0,0.00028219,2]
[327462256,1716082252137,-1783.23,0.00028219,2]
[327462257,1716082252146,-500.0,0.00028219,2]
[327462258,1716082252156,-500.0,0.00028219,2]
[327462259,1716082252165,-500.0,0.00028219,2]
[327462260,1716082252174,-500.0,0.00028219,2]
[327462261,1716082252183,-500.0,0.00028219,2]
[327462262,1716082252194,-546.66,0.00028219,2]
[327462263,1716082252204,-1009.45,0.00028219,2]
[327462264,1716082252213,-845.39,0.00028219,2]
[327462265,1716082252224,-531.29,0.00028219,2]
[327462266,1716082252234,-528.11,0.00028219,2]
[327462267,1716082252244,-1780.44,0.00028219,2]
[327462268,1716082252254,-902.15,0.00028219,2]
[327462269,1716082252263,-1010.76,0.00028219,2]
[327462270,1716082252272,-512.17547928,0.00028219,2]
[327462271,1716082252282,-2190.05,0.00028219,2]
[327462272,1716082252291,-948.89,0.00028219,2]
[327462273,1716082252301,-568.1,0.00028219,2]
[327462274,1716082252311,-1519.63,0.00028219,2]
[327462275,1716082252323,-900.15,0.00028219,2]
[327462276,1716082252333,-500.0,0.00028219,2]
[327462277,1716082252343,-4105.81,0.00028219,2]
[327462278,1716082252352,-500.0,0.00028219,2]
[327462279,1716082252360,-500.0,0.00028219,2]
[327462280,1716082252370,-500.0,0.00028219,2]
[327462281,1716082252379,-500.0,0.00028219,2]
[327462282,1716082252388,-703.81,0.00028219,2]
[327462283,1716082252397,-5362.31,0.00028219,2]
[327462284,1716082252407,-500.0,0.00028219,2]
[327462285,1716082252417,-500.0,0.00028219,2]
[327462286,1716082252428,-500.0,0.00028219,2]
[327462287,1716082252439,-3781.68,0.00028219,2]
[327462288,1716082252450,-500.0,0.00028219,2]
[327462289,1716082252460,-2404.44,0.00028219,2]
[327462290,1716082252471,-1411.64,0.00028219,2]
[327462291,1716082252480,-837.9,0.00028219,2]
[327462292,1716082252489,-500.0,0.00028219,2]
[327462293,1716082252501,-500.0,0.00028219,2]
[327462294,1716082252510,-6509.93,0.00028219,2]
[327462295,1716082252520,-500.0,0.00028219,2]
[327462296,1716082252530,-500.0,0.00028219,2]
[327462297,1716082252539,-500.0,0.00028219,2]
[327462298,1716082252548,-1252.47,0.00028219,2]
[327462299,1716082252558,-500.0,0.00028219,2]
[327462300,1716082252568,-500.0,0.00028219,2]
[327462301,1716082252580,-500.0,0.00028219,2]
[327462302,1716082252589,-777.77,0.00028219,2]
[327462303,1716082252598,-1416.33,0.00028219,2]
[327462304,1716082252607,-500.0,0.00028219,2]
[327462305,1716082252618,-420.56,0.00028224,2]
[327462306,1716082252627,-420.56,0.00028224,2]
[327462307,1716082252636,-420.56,0.00028224,2]
[327462308,1716082252645,-278.52,0.00028224,2]
[327462309,1716082252656,-163.2169613,0.00028229,2]
[327462310,1716082252665,-322.21807534,0.00028255,2]
[327462311,1716082252674,-3645.66791152,0.00028437,2]
[327462312,1716082252685,-150.0,0.00028447,7]
[327462313,1716082252694,-150.5,0.00028463,15]
[327462314,1716082252703,-150.5,0.00028463,15]
[327462315,1716082252713,-150.5,0.00028473,15]
[327462316,1716082252725,-150.5,0.00028473,15]
[327462317,1716082252734,-150.5,0.00028483,15]
[327462318,1716082252742,-150.5,0.00028483,15]
[327462319,1716082252751,-1234.27,0.00028491,2]
[327462320,1716082252760,-748.72,0.00028491,2]
[327462321,1716082252769,-1842.89,0.00028491,2]
[327462322,1716082252780,-2279.71,0.00028491,2]
[327462323,1716082252789,-1371.6,0.00028491,2]
[327462324,1716082252798,-8396.08,0.00028491,2]
[327462325,1716082252807,-678.53,0.00028491,2]
[327462326,1716082252816,-500.0,0.00028492,2]
[327462327,1716082252825,-500.0,0.00028492,2]
[327462328,1716082252834,-259.08730999,0.00028492,2]
[327462329,1716082252843,-500.0,0.00028492,2]
[327462330,1716082252852,-500.0,0.00028492,2]
[327462331,1716082252862,-500.0,0.00028492,2]
[327462332,1716082252871,-523.59394214,0.00028492,2]
[327462333,1716082252880,-500.0,0.00028492,2]
[327462334,1716082252889,-500.0,0.00028492,2]
[327462335,1716082252899,-500.0,0.00028492,2]
[327462336,1716082252908,-500.0,0.00028492,2]
[327462337,1716082252917,-500.0,0.00028492,2]
[327462338,1716082252926,-793.82,0.00028492,2]
[327462339,1716082252935,-500.0,0.00028492,2]
[327462340,1716082252948,-500.0,0.00028492,2]
[327462341,1716082252957,-500.0,0.00028492,2]
[327462342,1716082252967,-687.64,0.00028492,2]
[327462343,1716082252976,-500.0,0.00028492,2]
[327462344,1716082252986,-500.0,0.00028492,2]
[327462345,1716082252996,-500.0,0.00028492,2]
[327462346,1716082253005,-500.0,0.00028492,2]
[327462347,1716082253014,-500.0,0.00028492,2]
[327462348,1716082253027,-500.0,0.00028492,2]
[327462349,1716082253038,-316.12,0.00028492,2]
[327462350,1716082253049,-500.0,0.00028492,2]
[327462351,1716082253058,-797.47,0.00028492,2]
[327462352,1716082253068,-739.51,0.00028492,2]
[327462353,1716082253077,-500.0,0.00028492,2]
[327462354,1716082253087,-500.0,0.00028492,2]
[327462355,1716082253096,-399.27852018,0.00028492,2]
[327462356,1716082253105,-1955.27,0.00028492,2]
[327462357,1716082253115,-500.0,0.00028492,2]
[327462358,1716082253124,-500.0,0.00028492,2]
[327462359,1716082253134,-500.0,0.00028492,2]
[327462360,1716082253144,-500.0,0.00028492,2]
[327462361,1716082253153,-1178.57,0.00028492,2]
[327462362,1716082253163,-500.0,0.00028492,2]
[327462363,1716082253173,-955.1,0.00028492,2]
[327462364,1716082253183,-10244.61,0.00028492,2]
[327462365,1716082253192,-1311.01,0.00028492,2]
[327462366,1716082253203,-1447.63,0.00028492,2]
[327462367,1716082253212,-500.0,0.00028492,2]
[327462368,1716082253222,-500.0,0.00028492,2]
[327462369,1716082253231,-726.55,0.00028492,2]
[327462370,1716082253241,-500.0,0.00028492,2]
[327462371,1716082253250,-500.0,0.00028492,2]
[327462372,1716082253260,-656.84,0.00028492,2]
[327462373,1716082253270,-500.0,0.00028492,2]
[327462374,1716082253281,-500.0,0.00028492,2]
[327462375,1716082253291,-2827.83,0.00028492,2]
[327462376,1716082253301,-1884.05,0.00028492,2]
[327462377,1716082253311,-971.42,0.00028492,2]
[327462378,1716082253320,-500.0,0.00028492,2]
[327462379,1716082253330,-290.34046306,0.00028492,2]
[327462380,1716082253340,-190.93618433,0.00028492,2]
[327462381,1716082253350,-1696.39,0.00028492,2]
[327462382,1716082253360,-2379.68,0.00028492,2]
[327462383,1716082253370,-500.0,0.00028492,2]
[327462384,1716082253379,-500.0,0.00028493,2]
[327462385,1716082253389,-500.0,0.00028493,2]
[327462386,1716082253399,-500.0,0.00028493,2]
[327462387,1716082253409,-500.0,0.00028493,2]
[327462388,1716082253419,-500.0,0.00028493,2]
[327462389,1716082253429,-500.0,0.00028493,2]
[327462390,1716082253439,-500.0,0.00028493,2]
[327462391,1716082253450,-500.0,0.00028493,2]
[327462392,1716082253459,-500.0,0.00028493,2]
[327462393,1716082253469,-500.0,0.00028493,2]
[327462394,1716082253480,-500.0,0.00028493,2]
[327462395,1716082253490,-500.0,0.00028493,2]
[327462396,1716082253499,-500.0,0.00028493,2]
[327462397,1716082253509,-500.0,0.00028493,2]
[327462398,1716082253520,-500.0,0.00028493,2]
[327462399,1716082253531,-500.0,0.00028493,2]
[327462400,1716082253541,-500.0,0.00028493,2]
[327462401,1716082253550,-500.0,0.00028493,2]
[327462402,1716082253560,-500.0,0.00028493,2]
[327462403,1716082253570,-756.44,0.00028493,2]
[327462404,1716082253579,-500.0,0.00028493,2]
[327462405,1716082253589,-882.93,0.00028493,2]
[327462406,1716082253599,-500.0,0.00028493,2]
[327462407,1716082253609,-500.0,0.00028493,2]
[327462408,1716082253619,-500.0,0.00028493,2]
[327462409,1716082253629,-500.0,0.00028493,2]
[327462410,1716082253639,-1023.73,0.00028493,2]
[327462411,1716082253648,-500.0,0.00028493,2]
[327462412,1716082253658,-522.65,0.00028493,2]
[327462413,1716082253668,-543.0,0.00028493,2]
[327462414,1716082253677,-500.0,0.00028493,2]
[327462415,1716082253687,-773.0,0.00028493,2]
[327462416,1716082253698,-774.25,0.00028493,2]
[327462417,1716082253708,-500.0,0.00028493,2]
[327462418,1716082253718,-500.0,0.00028493,2]
[327462419,1716082253728,-500.0,0.00028493,2]
[327462420,1716082253738,-500.0,0.00028493,2]
[327462421,1716082253747,-500.0,0.00028493,2]
[327462422,1716082253758,-500.0,0.00028493,2]
[327462423,1716082253768,-174.05,0.00028493,2]
[327462424,1716082253778,-500.0,0.00028493,2]
[327462425,1716082253789,-500.0,0.00028493,2]
[327462426,1716082253798,-500.0,0.00028493,2]
[327462427,1716082253807,-500.0,0.00028493,2]
[327462428,1716082253818,-500.0,0.00028493,2]
[327462429,1716082253828,-500.0,0.00028493,2]
[327462430,1716082253839,-500.0,0.00028493,2]
[327462431,1716082253849,-578.08,0.00028493,2]
[327462432,1716082253859,-980.32,0.00028493,2]
[327462433,1716082253870,-500.0,0.00028493,2]
[327462434,1716082253880,-667.35,0.00028493,2]
[327462435,1716082253890,-500.0,0.00028493,2]
[327462436,1716082253900,-500.0,0.00028493,2]
[327462437,1716082253910,-500.0,0.00028493,2]
[327462438,1716082253920,-500.0,0.00028493,2]
[327462439,1716082253930,-500.0,0.00028493,2]
[327462440,1716082253940,-500.0,0.00028493,2]
[327462441,1716082253954,-500.0,0.00028493,2]
[327462442,1716082253964,-500.0,0.00028493,2]
[327462443,1716082253974,-500.0,0.00028493,2]
[327462444,1716082253984,-500.0,0.00028493,2]
[327462445,1716082253994,-500.0,0.00028493,2]
[327462446,1716082254004,-500.0,0.00028493,2]
[327462447,1716082254014,-500.0,0.00028493,2]
[327462448,1716082254025,-856.62,0.00028493,2]
[327462449,1716082254036,-779.63,0.00028493,2]
[327462450,1716082254046,-500.0,0.00028493,2]
[327462451,1716082254056,-500.0,0.00028493,2]
[327462452,1716082254066,-500.0,0.00028493,2]
[327462453,1716082254076,-500.0,0.00028493,2]
[327462454,1716082254086,-500.0,0.00028493,2]
[327462455,1716082254096,-500.0,0.00028493,2]
[327462456,1716082254106,-500.0,0.00028493,2]
[327462457,1716082254117,-639.93,0.00028493,2]
[327462458,1716082254127,-500.0,0.00028493,2]
[327462459,1716082254137,-500.0,0.00028493,2]
[327462460,1716082254147,-500.0,0.00028493,2]
[327462461,1716082254157,-1255.93,0.00028493,2]
[327462462,1716082254168,-713.46,0.00028493,2]
[327462463,1716082254178,-500.0,0.00028493,2]
[327462464,1716082254189,-500.0,0.00028493,2]
[327462465,1716082254199,-573.24,0.00028493,2]
[327462466,1716082254209,-4072.27,0.00028493,2]
[327462467,1716082254219,-3429.99,0.00028493,2]
[327462468,1716082254229,-500.0,0.00028493,2]
[327462469,1716082254239,-500.0,0.00028493,2]
[327462470,1716082254249,-14641.45,0.00028493,2]
[327462471,1716082254259,-500.0,0.00028493,2]
[327462472,1716082254269,-989.32,0.00028493,2]
[327462473,1716082254280,-205.81667204,0.00028493,2]
[327462474,1716082254290,-500.0,0.00028493,2]
[327462475,1716082254299,-608.54,0.00028493,2]
[327462476,1716082254309,-500.0,0.00028493,2]
[327462477,1716082254319,-500.0,0.00028493,2]
[327462478,1716082254330,-1603.85,0.00028493,2]
[327462479,1716082254339,-217.93,0.00028493,2]
[327462480,1716082254349,-500.0,0.00028493,2]
[327462481,1716082254358,-434.52394638,0.00028493,2]
[327462482,1716082254368,-500.0,0.00028493,2]
[327462483,1716082254377,-500.0,0.00028493,2]
[327462484,1716082254387,-500.0,0.00028493,2]
[327462485,1716082254397,-622.79,0.00028493,2]
[327462486,1716082254408,-2711.99,0.00028493,2]
[327462487,1716082254418,-3199.92,0.00028493,2]
[327462488,1716082254428,-500.0,0.00028493,2]
[327462489,1716082254439,-579.86,0.00028493,2]
[327462490,1716082254449,-500.0,0.00028493,2]
[327462491,1716082254459,-518.99,0.00028493,2]
[327462492,1716082254469,-500.0,0.00028493,2]
[327462493,1716082254479,-500.0,0.00028493,2]
[327462494,1716082254489,-2911.46,0.00028493,2]
[327462495,1716082254499,-500.0,0.00028493,2]
[327462496,1716082254509,-500.0,0.00028493,2]
[327462497,1716082254519,-500.0,0.00028493,2]
[327462498,1716082254529,-595.93,0.00028493,2]
[327462499,1716082254540,-1062.35,0.00028493,2]
[327462500,1716082254549,-500.0,0.00028493,2]
[327462501,1716082254559,-500.0,0.00028493,2]
[327462502,1716082254569,-500.0,0.00028493,2]
[327462503,1716082254579,-500.0,0.00028493,2]
[327462504,1716082254590,-791.88,0.00028493,2]
[327462505,1716082254599,-500.0,0.00028493,2]
[327462506,1716082254609,-1254.74,0.00028493,2]
[327462507,1716082254619,-500.0,0.00028493,2]
[327462508,1716082254629,-890.48,0.00028493,2]
[327462509,1716082254639,-1317.08,0.00028493,2]
[327462510,1716082254650,-500.0,0.00028493,2]
[327462511,1716082254660,-500.0,0.00028493,2]
[327462512,1716082254669,-1486.92,0.00028493,2]
[327462513,1716082254679,-500.0,0.00028493,2]
[327462514,1716082254689,-1215.81,0.00028493,2]
[327462515,1716082254699,-500.0,0.00028493,2]
[327462516,1716082254709,-500.0,0.00028493,2]
[327462517,1716082254719,-500.0,0.00028493,2]
[327462518,1716082254730,-1461.12,0.00028493,2]
[327462519,1716082254740,-500.0,0.00028493,2]
[327462520,1716082254750,-500.0,0.00028493,2]
[327462521,1716082254761,-500.0,0.00028493,2]
[327462522,1716082254771,-712.48,0.00028493,2]
[327462523,1716082254781,-643.71,0.00028493,2]
[327462524,1716082254792,-945.44,0.00028493,2]
[327462525,1716082254802,-1781.22,0.00028493,2]
[327462526,1716082254812,-500.0,0.00028493,2]
[327462527,1716082254822,-500.0,0.00028493,2]
[327462528,1716082254833,-500.0,0.00028493,2]
[327462529,1716082254843,-986.97,0.00028493,2]
[327462530,1716082254853,-500.0,0.00028493,2]
[327462531,1716082254863,-962.37,0.00028493,2]
[327462532,1716082254873,-722.54,0.00028493,2]
[327462533,1716082254883,-500.0,0.00028493,2]
[327462534,1716082254894,-1446.91,0.00028493,2]
[327462535,1716082254904,-500.0,0.00028493,2]
[327462536,1716082254914,-500.0,0.00028493,2]
[327462537,1716082254924,-1189.8,0.00028493,2]
[327462538,1716082254935,-1219.05,0.00028493,2]
[327462539,1716082254949,-720.44,0.00028493,2]
[327462540,1716082254959,-563.6,0.00028493,2]
[327462541,1716082254970,-500.0,0.00028493,2]
[327462542,1716082254980,-500.0,0.00028493,2]
[327462543,1716082254991,-555.9,0.00028493,2]
[327462544,1716082255002,-500.0,0.00028493,2]
[327462545,1716082255013,-1783.23,0.00028493,2]
[327462546,1716082255025,-500.0,0.00028493,2]
[327462547,1716082255036,-500.0,0.00028493,2]
[327462548,1716082255047,-500.0,0.00028493,2]
[327462549,1716082255056,-500.0,0.00028493,2]
[327462550,1716082255067,-500.0,0.00028493,2]
[327462551,1716082255077,-1009.45,0.00028493,2]
[327462552,1716082255087,-546.66,0.00028493,2]
[327462553,1716082255097,-845.39,0.00028493,2]
[327462554,1716082255108,-531.29,0.00028493,2]
[327462555,1716082255118,-528.11,0.00028493,2]
[327462556,1716082255127,-1780.44,0.00028493,2]
[327462557,1716082255137,-902.15,0.00028493,2]
[327462558,1716082255147,-1010.76,0.00028493,2]
[327462559,1716082255156,-2190.05,0.00028493,2]
[327462560,1716082255165,-948.89,0.00028493,2]
[327462561,1716082255175,-568.1,0.00028493,2]
[327462562,1716082255185,-1519.63,0.00028493,2]
[327462563,1716082255195,-900.15,0.00028493,2]
[327462564,1716082255204,-500.0,0.00028493,2]
[327462565,1716082255213,-4105.81,0.00028493,2]
[327462566,1716082255223,-500.0,0.00028493,2]
[327462567,1716082255232,-500.0,0.00028493,2]
[327462568,1716082255241,-500.0,0.00028493,2]
[327462569,1716082255251,-500.0,0.00028493,2]
[327462570,1716082255260,-703.81,0.00028493,2]
[327462571,1716082255270,-5362.31,0.00028493,2]
[327462572,1716082255280,-500.0,0.00028493,2]
[327462573,1716082255290,-500.0,0.00028493,2]
[327462574,1716082255300,-500.0,0.00028493,2]
[327462575,1716082255311,-3781.68,0.00028493,2]
[327462576,1716082255321,-500.0,0.00028493,2]
[327462577,1716082255331,-2404.44,0.00028493,2]
[327462578,1716082255341,-1411.64,0.00028493,2]
[327462579,1716082255568,-837.9,0.00028493,2]
[327462580,1716082255579,-500.0,0.00028493,2]
[327462581,1716082255589,-500.0,0.00028493,2]
[327462582,1716082255599,-6509.93,0.00028493,2]
[327462583,1716082255608,-500.0,0.00028493,2]
[327462584,1716082255618,-500.0,0.00028493,2]
[327462585,1716082255628,-500.0,0.00028493,2]
[327462586,1716082255638,-1252.47,0.00028493,2]
[327462587,1716082255648,-500.0,0.00028493,2]
[327462588,1716082255657,-500.0,0.00028493,2]
[327462589,1716082255667,-500.0,0.00028493,2]
[327462590,1716082255677,-777.77,0.00028493,2]
[327462591,1716082255686,-1416.33,0.00028493,2]
[327462592,1716082255696,-500.0,0.00028493,2]
[327462593,1716082255705,-322.21807534,0.00028597,2]
[327462594,1716082255715,-202.05557656,0.00028667,2]
[327462595,1716082255724,-680.21,0.00028746,2]
[327462596,1716082255734,-1234.27,0.00028765,2]
[327462597,1716082255743,-748.72,0.00028765,2]
[327462598,1716082255752,-1842.89,0.00028765,2]
[327462599,1716082255761,-2279.71,0.00028765,2]
[327462600,1716082255772,-1371.6,0.00028765,2]
[327462601,1716082255781,-8396.08,0.00028765,2]
[327462602,1716082255790,-678.53,0.00028765,2]
[327462603,1716082255800,-733.6165393,0.00028765,2]
[327462604,1716082255809,-500.0,0.00028766,2]
[327462605,1716082255819,-500.0,0.00028766,2]
[327462606,1716082255828,-500.0,0.00028766,2]
[327462607,1716082255837,-500.0,0.00028766,2]
[327462608,1716082255847,-500.0,0.00028766,2]
[327462609,1716082255856,-456.35946375,0.00028766,2]
[327462610,1716082255865,-500.0,0.00028766,2]
[327462611,1716082255875,-500.0,0.00028766,2]
[327462612,1716082255884,-500.0,0.00028766,2]
[327462613,1716082255894,-500.0,0.00028766,2]
[327462614,1716082255903,-793.82,0.00028766,2]
[327462615,1716082255912,-500.0,0.00028766,2]
[327462616,1716082255922,-500.0,0.00028766,2]
[327462617,1716082255931,-507.77216432,0.00028766,2]
[327462618,1716082255941,-687.64,0.00028766,2]
[327462619,1716082255954,-500.0,0.00028766,2]
[327462620,1716082255964,-500.0,0.00028766,2]
[327462621,1716082255973,-500.0,0.00028766,2]
[327462622,1716082255982,-500.0,0.00028766,2]
[327462623,1716082255992,-500.0,0.00028766,2]
[327462624,1716082256001,-500.0,0.00028766,2]
[327462625,1716082256010,-500.0,0.00028766,2]
[327462626,1716082256019,-797.47,0.00028766,2]
[327462627,1716082256029,-739.51,0.00028766,2]
[327462628,1716082256039,-500.0,0.00028766,2]
[327462629,1716082256048,-500.0,0.00028766,2]
[327462630,1716082256057,-1955.27,0.00028766,2]
[327462631,1716082256067,-500.0,0.00028766,2]
[327462632,1716082256076,-500.0,0.00028766,2]
[327462633,1716082256085,-500.0,0.00028766,2]
[327462634,1716082256096,-500.0,0.00028766,2]
[327462635,1716082256107,-1178.57,0.00028766,2]
[327462636,1716082256117,-500.0,0.00028766,2]
[327462637,1716082256127,-955.1,0.00028766,2]
[327462638,1716082256137,-10244.61,0.00028766,2]
[327462639,1716082256146,-1311.01,0.00028766,2]
[327462640,1716082256155,-1447.63,0.00028766,2]
[327462641,1716082256165,-582.52,0.00028766,2]
[327462642,1716082256174,-500.0,0.00028766,2]
[327462643,1716082256184,-726.55,0.00028766,2]
[327462644,1716082256193,-500.0,0.00028766,2]
[327462645,1716082256203,-500.0,0.00028766,2]
[327462646,1716082256212,-656.84,0.00028766,2]
[327462647,1716082256222,-500.0,0.00028766,2]
[327462648,1716082256231,-424.93451331,0.00028766,2]
[327462649,1716082256240,-2827.83,0.00028766,2]
[327462650,1716082256249,-1884.05,0.00028766,2]
[327462651,1716082256259,-971.42,0.00028766,2]
[327462652,1716082256268,-500.0,0.00028766,2]
[327462653,1716082256278,-1696.39,0.00028766,2]
[327462654,1716082256288,-2379.68,0.00028766,2]
[327462655,1716082256297,-500.0,0.00028766,2]
[327462656,1716082256307,-500.0,0.00028767,2]